Cogmind - Beta 17.1 @@@ ROGUE MODE // 2026.09.13 @ 05:57:10 Player: KN-OKO Result: Destroyed by L-61 Swordsman with Power Sword Performance ------------- Evolutions (7) 3500 Regions Visited (23) 4600 Robots Destroyed (355) 1775 Value Destroyed (16177) 16177 Prototype IDs (51) 1020 Alien Tech Used (1) 200 Bonus (24305) 24305 TOTAL SCORE: 51577 Bonus ------- High Alert Combat Kills 3470 Follower Combat Kills 1389 Prayed to X0-1V1 5000 Major X0-1V1 Interference 13750 Met Data Miner 300 Met Imprinter 300 Met Zhirov 300 MAIN.C Attacked Proxy Base 500 Friendly Fire -704 Cogmind --------- Core Integrity 0/925 Matter 292/300 Energy 135/135 System Corruption 17% Temperature Cool (0) Movement Treading (225) Ox1 Location -3/Research Parts ------- > --- POWER (3) -------- Compact Particle Reactor > --- PROPULSION (5) --- Advanced Heavy Treads > --- UTILITY (8) ------ Huge Storage Unit Advanced Melee Analysis Suite Improved Armor Integrity Analyzer Advanced Hacking Suite Advanced Corruption Screen > --- WEAPON (5) ------- Heavy Scimitar of Distortion Plasma Lance > --- INVENTORY (25) --- Light Antimatter Reactor Advanced Heat Sink Experimental Energy Well (600) Compact Matter Pod (150) Improved Cloaking Device HERF Cannon Matter Neutralizer Railgun Railgun Linear Accelerator Smartbomb Launcher Neutron Missile Launcher Peak State ------------ > --- POWER ------------ Particle Reactor Micro Antimatter Reactor Compact Particle Reactor > --- PROPULSION ------- Advanced Medium Treads Advanced Medium Treads Advanced Medium Treads Improved Heavy Siege Treads > --- UTILITY ---------- Advanced Cooling System Huge Storage Unit Experimental Signal Interpreter Advanced Targeting Computer Improved Armor Integrity Analyzer Light Regenerative Plating Advanced Hacking Suite X0-1V1's Piety Tracker > --- WEAPON ----------- Phase Gun Phase Gun Railgun Railgun Advanced Micro-nuke Launcher > --- INVENTORY -------- Micro Antimatter Reactor Graviton Reactor Medium Treads Heavy Siege Treads Biometal Medium Treads Improved Heavy Siege Treads Advanced Energy Well Experimental Energy Well Compact Matter Pod Transdimensional Reconstructor Phase Gun HERF Cannon Railgun Railgun Railgun Railgun Hypervelocity Railgun Linear Accelerator Smartbomb Launcher Neutron Missile Launcher Heavy Scimitar of Distortion Plasma Lance [Rating: 168] Favorites ----------- Power Light Antimatter Reactor Engine Light Angular Momentum Engine Power Core Fission Core Reactor Light Antimatter Reactor Propulsion Armored Huge Wheel Treads Advanced Medium Treads Leg Flexi-carbon Leg Wheel Armored Huge Wheel Utility X0-1V1's Piety Tracker Device X0-1V1's Piety Tracker Storage High-capacity Storage Unit Processor Advanced Targeting Computer Hackware Advanced Hacking Suite Protection Light Regenerative Plating Weapon Beamcaster Energy Gun Beamcaster Energy Cannon Advanced Plasma Cannon Ballistic Gun Light Assault Rifle Ballistic Cannon Bore Cannon Launcher Precision Rocket Launcher Special Weapon Remote Datajack Impact Weapon Thunder Hammer Slashing Weapon Scimitar of Distortion Piercing Weapon Plasma Lance Build | -11 -10 -9 -8 -7 -7 -7 -7 -6 -6 -6 -6 -6 -6 -6 -5 -5 -5 -5 -5 -4 -4 -4 -3 ------- Run | Yrd Mat Mat Mat Fac Low Low Dat Pro Fac Was Fac Low Low Zio Pro Fac Upp Upp Zhi Pro Fac Ext Res Slots Evolved 14 | . . 2 2 2 . . . . 2 . . . . . . 2 . . . . 2 . 2 Power 1 | . . . 1 . . . . . . . . . . . . . . . . . . . . Propulsion 4 | . . . . 1 . . . . 1 . . . . . . . . . . . 2 . . Utility 6 | . . . 1 1 . . . . 1 . . . . . . 2 . . . . . . 1 Weapon 3 | . . 2 . . . . . . . . . . . . . . . . . . . . 1 Parts Attached 265 | 6 2 18 26 31 5 . . 12 9 . 17 6 6 4 4 21 5 8 2 12 11 8 52 Power 40 | 1 . 2 5 4 2 . . 1 . . 3 . 1 . 1 6 . . 1 . 2 1 10 Engine 9 | 1 . 2 1 1 1 . . . . . 1 . . . . 2 . . . . . . . Core 15 | . . . 4 3 1 . . . . . 1 . 1 . 1 4 . . . . . . . Reactor 16 | . . . . . . . . 1 . . 1 . . . . . . . 1 . 2 1 10 Propulsion 59 | 2 . 3 7 8 . . . 2 1 . 1 . . . 2 5 2 2 . 7 2 5 10 Treads 32 | 2 . 3 7 2 . . . 2 . . . . . . . 1 . . . . . 5 10 Leg 17 | . . . . . . . . . . . . . . . . 4 2 2 . 7 2 . . Wheel 10 | . . . . 6 . . . . 1 . 1 . . . 2 . . . . . . . . Hover . | . . . . . . . . . . . . . . . . . . . . . . . . Flight . | . . . . . . . . . . . . . . . . . . . . . . . . Utility 75 | 1 2 3 5 8 2 . . 2 5 . 7 1 . 3 1 6 3 2 1 3 . 2 18 Device 49 | . 1 1 5 6 2 . . 1 5 . 4 . . . 1 3 1 2 1 3 . 2 11 Storage 7 | 1 1 1 . 1 . . . 1 . . . . . . . . . . . . . . 2 Processor 10 | . . . . 1 . . . . . . 1 1 . 3 . . 1 . . . . . 3 Hackware 1 | . . . . . . . . . . . . . . . . 1 . . . . . . . Protection 8 | . . 1 . . . . . . . . 2 . . . . 2 1 . . . . . 2 Artifact . | . . . . . . . . . . . . . . . . . . . . . . . . Weapon 91 | 2 . 10 9 11 1 . . 7 3 . 6 5 5 1 . 4 . 4 . 2 7 . 14 Energy Gun 28 | . . . 3 4 . . . . 1 . 3 . 4 1 . 1 . 4 . . 4 . 3 Energy Cannon 6 | . . . . 2 . . . 1 . . 1 2 . . . . . . . . . . . Ballistic Gun 31 | 2 . 10 2 2 1 . . 2 1 . . 1 . . . 1 . . . 1 2 . 6 Ballistic Cannon 14 | . . . 2 2 . . . 3 1 . 1 1 1 . . 1 . . . 1 1 . . Launcher 6 | . . . 1 1 . . . . . . . 1 . . . 1 . . . . . . 2 Special Weapon 1 | . . . . . . . . 1 . . . . . . . . . . . . . . . Impact Weapon 1 | . . . . . . . . . . . . . . . . . . . . . . . 1 Slashing Weapon 3 | . . . 1 . . . . . . . 1 . . . . . . . . . . . 1 Piercing Weapon 1 | . . . . . . . . . . . . . . . . . . . . . . . 1 Special Melee Weapon . | . . . . . . . . . . . . . . . . . . . . . . . . Unidentified Prototypes 25 | . 1 1 2 3 . . . 1 2 . . . . 4 . 1 . . 3 . 1 . 6 Corrupted Parts 6 | . . . . 6 . . . . . . . . . . . . . . . . . . . System Corruption 33 | . . . . 33 . . . . . . . . . . . . . . . . . . . Parts Lost 127 | . . 6 19 16 4 . . . . . 6 3 . . 6 10 . 1 . 15 . . 41 Power 23 | . . . 3 3 2 . . . . . 1 . . . 2 4 . . . 2 . . 6 Propulsion 34 | . . 2 5 4 . . . . . . 1 . . . 2 3 . 1 . 6 . . 10 Utility 31 | . . 1 5 3 1 . . . . . 1 . . . 1 1 . . . 4 . . 14 Weapon 39 | . . 3 6 6 1 . . . . . 3 3 . . 1 2 . . . 3 . . 11 Highest Loss Streak 15 | . . 2 10 6 3 . . . . . 2 2 . . 3 2 . 1 . 15 . . 8 To Critical Strikes 2 | . . . . 1 . . . . . . . . . . 1 . . . . . . . . Average Backups 14 | 4 8 13 8 12 8 11 14 16 17 17 17 16 18 17 12 13 15 15 16 14 14 18 17 Power . | . 1 . . . . . . . . 1 1 1 1 1 . . . . . . . . . Propulsion 3 | 3 2 5 5 5 3 3 3 3 2 2 3 5 5 3 1 1 2 2 4 2 . 2 2 Utility 3 | . . 1 1 1 1 3 3 5 6 7 6 5 5 5 5 4 5 6 5 4 4 4 3 Weapon 6 | . 5 4 1 4 4 5 8 7 7 6 5 3 6 6 4 6 6 6 6 5 8 10 8 Tool/Special . | . . . . . . . . . . . . . . . . . . . . . . . . Unused Backups 50 | . 3 3 4 5 . . . 2 . . 2 . 2 5 . . 3 5 . 1 . 1 14 Power 6 | . . 2 . 1 . . . 1 . . 1 . 1 . . . . . . . . . . Propulsion 17 | . 3 . 3 4 . . . . . . . . . 2 . . 1 . . . . . 4 Utility 11 | . . . . . . . . 1 . . . . 1 2 . . 2 4 . . . . 1 Weapon 14 | . . 1 1 . . . . . . . 1 . . . . . . 1 . 1 . 1 8 Tool/Special 2 | . . . . . . . . . . . . . . 1 . . . . . . . . 1 Average Slot Usage (%) 86 | . 86 98 74 89 88 92 70 91 85 85 85 85 85 63 71 93 99 99 99 90 89 73 80 Engine 2 | . 14 11 3 . . 7 7 3 . . 1 . . . . 3 5 5 3 . . . . Core 4 | . . . 8 13 10 7 7 7 6 6 8 6 6 5 5 4 5 5 5 3 . . . Reactor 4 | . . . . . . . . 3 6 6 2 6 6 5 2 . . . 1 3 9 10 12 Treads 9 | . 28 21 17 6 7 7 7 7 . . . . . . . . . . . . . 23 18 Leg 4 | . . . . . . . . . . . . . . . . 10 23 22 23 21 30 2 . Wheel 4 | . . . . 9 7 7 7 7 12 13 13 13 13 12 13 8 . . . . . . . Device 13 | . 1 10 15 14 15 15 15 15 19 20 17 16 20 13 9 17 16 16 16 14 10 10 10 Storage 6 | . 14 11 9 7 7 7 7 7 6 6 6 6 6 6 6 5 5 5 5 5 5 5 4 Processor 5 | . . . . 6 7 7 7 7 6 6 6 6 6 11 13 7 5 5 5 5 5 5 8 Hackware 2 | . . . . . . . . . . . . . . . . 4 5 5 5 5 5 5 4 Protection 2 | . . . . . . . . . . . 1 3 . . 1 2 4 5 5 3 5 4 4 Energy Gun 6 | . . . 4 7 7 7 . . 3 6 10 5 21 . 5 15 10 11 23 18 9 5 5 Energy Cannon 1 | . . . . 1 . . . 6 5 5 2 13 2 . . . . . . . . . . Ballistic Gun 9 | . 28 42 13 5 14 15 . 15 8 6 1 2 . 4 6 2 5 4 . 1 4 . 4 Ballistic Cannon 2 | . . . 2 12 . . . 6 6 2 6 3 1 . . 1 5 4 . 1 3 . . Peak Build Rating 168 | 6 20 28 46 62 58 58 57 76 88 89 88 86 84 87 77 97 97 96 101 102 126 134 168 Average Rating 83 | 5 7 25 24 52 53 58 53 70 84 88 84 83 82 70 67 90 95 94 96 93 122 131 148 On Entrance 70 | . 6 20 26 42 56 58 58 53 74 88 88 86 83 83 74 77 83 96 95 98 95 125 134 Avg Prop Armor Cover (%) 8 | . . . . 11 8 8 12 6 . . . . . . . 13 . . . . . . 4 Naked Turns . | . . . . . . . . . . . . . . . . . . . . . . . . Heaviest Build 171 | 13 29 43 52 84 79 79 70 93 99 98 104 111 100 85 78 93 105 94 93 93 119 112 171 Greatest Support 190 | 40 40 40 48 68 28 28 28 28 56 56 56 56 56 56 56 71 68 73 73 85 130 190 190 Greatest Overweight (x) 7 | . . 1 1 7 2 2 2 3 1 1 1 1 1 1 2 7 1 1 1 2 1 1 1 Average Overweight (x) 1 | . . . . 2 1 2 2 2 1 1 1 1 1 . 1 1 1 1 1 1 . . . Largest Inventory Capacity 25 | 8 15 15 15 20 20 20 20 20 20 20 20 20 20 20 20 20 20 20 20 20 20 20 25 Average Capacity 19 | 7 12 15 15 19 20 20 20 20 20 20 20 20 20 20 20 20 20 20 20 20 20 20 24 Most Carried 25 | 6 11 15 14 20 14 15 18 20 20 20 20 19 20 20 20 20 20 20 20 20 20 20 25 Average Carried 16 | 4 8 13 8 16 11 14 17 19 19 19 18 17 19 18 15 16 19 19 19 17 18 19 19 Final Capacity 25 | 8 15 15 15 20 20 20 20 20 20 20 20 20 20 20 20 20 20 20 20 20 20 20 25 Final Carried 20 | 6 11 13 13 11 14 15 18 20 20 19 18 18 20 20 13 19 20 20 20 17 20 20 13 Class Distribution -------------------- 26% | Gunner 20% | Scavenger-Gunner 16% | Tank 15% | Mutant 6% | Derelict-Gunner 3% | Skirmisher Dominant Class ---------------- Mutant | -10/Materials Gunner | -9/Materials Scavenger-Mutant | -8/Materials Gunner | -7/Factory Gunner | -7/Lower Caves Scavenger-Gunner | -7/Lower Caves Mutant | -7/Data Miner Scavenger-Gunner | -6/Proximity Caves Scavenger-Gunner | -6/Factory Gunner | -6/Waste Skirmisher | -6/Factory Gunner | -6/Lower Caves Derelict-Gunner | -6/Lower Caves Mutant | -6/Zion Derelict-Gunner | -5/Proximity Caves Scavenger-Tank | -5/Factory Scavenger-Gunner | -5/Upper Caves Tank | -5/Upper Caves Derelict-Tank | -5/Zhirov Derelict-Gunner | -4/Proximity Caves Scavenger-Gunner | -4/Factory Tank | -4/Extension Tank | -3/Research Resources | -11 -10 -9 -8 -7 -7 -7 -7 -6 -6 -6 -6 -6 -6 -6 -5 -5 -5 -5 -5 -4 -4 -4 -3 ----------- Run | Yrd Mat Mat Mat Fac Low Low Dat Pro Fac Was Fac Low Low Zio Pro Fac Upp Upp Zhi Pro Fac Ext Res Matter Collected 10738 | 265 118 661 296 997 396 47 . 683 294 686 998 275 60 . 203 720 280 615 . 540 22 188 2394 Remotely . | . . . . . . . . . . . . . . . . . . . . . . . . Salvage Created 18862 | 89 237 1620 636 1250 527 47 . 425 496 1092 1338 296 . . 148 1663 58 382 . 930 22 1880 5726 Parts 711 | 4 27 94 21 58 23 4 . 18 14 3 57 8 . . 9 54 1 7 . 31 2 57 219 Haulers Intercepted 15 | . 2 4 . 2 . . . . 1 . 2 . . . . 2 . . . . . . 2 Recyclers Shooed 3 | . . 1 . . . . . . . . . . . . . . . . . . . . 2 Parts Field Recycled . | . . . . . . . . . . . . . . . . . . . . . . . . Retrieved Matter . | . . . . . . . . . . . . . . . . . . . . . . . . Parts Self-Destructed 116 | . . . . . 12 9 . 56 . . . 6 . . 11 . . 7 . 15 . . . Prevented 69 | . . . . . . . . 59 . . . . . . . . . . . 10 . . . Parts Restored . | . . . . . . . . . . . . . . . . . . . . . . . . Kills | -11 -10 -9 -8 -7 -7 -7 -7 -6 -6 -6 -6 -6 -6 -6 -5 -5 -5 -5 -5 -4 -4 -4 -3 ------- Run | Yrd Mat Mat Mat Fac Low Low Dat Pro Fac Was Fac Low Low Zio Pro Fac Upp Upp Zhi Pro Fac Ext Res Combat Hostiles Destroyed 299 | . 9 33 13 28 17 1 . 9 6 5 21 12 . . 8 20 . 7 . 12 . 19 79 Melee 16 | . . . 2 . . . . . . . 2 . . . 3 . . . . . . . 9 Guns 171 | . 9 33 11 5 4 1 . 4 3 1 5 . . . 1 10 . 5 . 5 . 17 57 Cannons 31 | . . . . 4 . . . 4 3 . 10 3 . . . 2 . 2 . 2 . . 1 AOE 66 | . . . . 19 13 . . . . 4 4 9 . . 3 3 . . . 4 . . 7 Classes Destroyed 20 | 1 2 5 . 6 1 . . . . 2 . . . . . . . . . . . 1 2 Worker 7 | . . 2 . . . . . . . . 1 . . . . 2 . . . . 1 . 1 Builder 6 | . . 1 . 1 . . . . 1 . . . . . . . . . . . . 2 1 Tunneler 2 | . . . . . . . . . . . . . . . . . . . . . . . 2 Hauler 15 | . 2 4 . 2 . . . . 1 . 2 . . . . 2 . . . . . . 2 Recycler 10 | 1 . 1 . 3 . . . . . . 1 . . . . 1 . . . . . . 3 Operator 4 | . . . . 2 . . . . . . . . . . . 1 . . . . . . 1 Drone 1 | . . . . . . . . . . 1 . . . . . . . . . . . . . Watcher 6 | . . 3 . . . . . . . . . . . . . . . . . . . 2 1 Swarmer 57 | . 9 6 . 5 8 . . 2 . . 6 2 . . 8 2 . . . 1 . . 8 Saboteur 5 | . . . . . . . . . . . . . . . . . . . . . . . 5 Grunt 130 | . . 21 10 10 4 . . 3 5 1 11 5 . . . 9 . 6 . 7 . 8 30 Brawler 7 | . . . . . 1 . . 1 . . . . . . . 1 . 1 . . . 1 2 Duelist 14 | . . . . 1 1 . . 1 . . . 1 . . . . . . . 2 . 3 5 Protector 2 | . . . . 1 . . . 1 . . . . . . . . . . . . . . . Sentry 29 | . . 6 3 1 2 . . 1 . . 2 2 . . . 3 . . . 1 . 1 7 Specialist 2 | . . . . 1 . . . . . 1 . . . . . . . . . . . . . Hunter 26 | . . . . 8 1 . . . 1 . 1 2 . . . 2 . . . 2 . 3 6 Programmer 26 | . . . . 2 . 1 . . . . 1 . . . . 3 . . . . . 3 16 Behemoth 2 | . . . . . . . . . . . . . . . . . . . . . . 2 . Compactor 4 | . . . . . . . . . . 4 . . . . . . . . . . . . . Thug 1 | . . . . . . . . . . . . . . . . . . . . . . 1 . Best Kill Streak 21 | 1 4 6 6 21 13 1 . 3 4 2 5 7 . . 6 7 . 3 . 5 1 5 9 Combat Bots Only 19 | . 3 5 6 19 13 1 . 3 3 2 5 7 . . 6 5 . 3 . 5 . 5 9 Max Kills in Single Turn 6 | 1 1 2 1 6 5 1 . 1 1 1 5 3 . . 2 2 . 1 . 2 1 2 3 Gunslinging 1 | . . 1 . . . . . . . . . . . . . . . . . . . . 1 Exploded 6 | . . . . 6 5 . . . . 1 4 3 . . 2 2 . . . 1 . . 3 Melee 1 | . . . 1 . . . . . . . 1 . . . 1 . . . . . . . 1 Uniques/NPCs Destroyed . | . . . . . . . . . . . . . . . . . . . . . . . . Combat | -11 -10 -9 -8 -7 -7 -7 -7 -6 -6 -6 -6 -6 -6 -6 -5 -5 -5 -5 -5 -4 -4 -4 -3 -------- Run | Yrd Mat Mat Mat Fac Low Low Dat Pro Fac Was Fac Low Low Zio Pro Fac Upp Upp Zhi Pro Fac Ext Res Hostile Shots Fired 2191 | . 40 129 203 229 74 2 . 47 15 14 146 35 . . 118 153 . 24 . 164 . 43 755 Missed 610 | . 7 26 35 64 28 . . 11 7 . 53 16 . . 29 53 . 6 . 54 . 19 202 Hits 1581 | . 33 103 168 165 46 2 . 36 8 14 93 19 . . 89 100 . 18 . 110 . 24 553 Melee 52 | . . . . 6 . . . 1 . 14 . . . . . . . . . 11 . . 20 Projectile 1529 | . 33 103 168 159 46 2 . 35 8 . 93 19 . . 89 100 . 18 . 99 . 24 533 AOE 3 | . . . . 1 . . . . . . . . . . . 2 . . . . . . . Critical Strikes 66 | . . 1 5 6 . . . 4 . . 1 . . . 1 3 . 1 . 11 . 2 31 Actively Blocked 1 | . . . . . . . . . . . . . . . . . . . . . . . 1 Part Disruptions 8 | . . . 2 . . . . . . . . . . . . . . . . . . . 6 Damage Taken 25895 | . 270 1196 1883 2518 529 23 . 642 134 107 924 256 . . 1400 1859 . 246 . 2250 . 467 11191 Core 2634 | . 40 143 285 252 93 . . 90 32 40 69 22 . . 246 179 . 27 . 166 . 19 931 Absorbed by Shields 1396 | . . . 136 . . . . . 20 . 227 . . . . 153 . 81 . 68 . 145 566 Reduced by Siege Mode 382 | . . . . . . . . . . . . . . . . . . . . . . . 382 Redirected to Shielding 107 | . . . . . . . . . . . . . . . . . . . . . . . 107 Ignored by Resistances 1186 | . . . 281 49 . 6 . . 9 19 11 . . . . 158 . 20 . 36 . 10 587 Regen/Repaired (Parts) 1559 | . . . . . . . . 88 . . . . . . . 57 213 15 . 12 . 507 667 Core Remaining (%) 60 | 100 84 94 18 . . . . 14 . . . . . . 13 . . . . 62 . 97 . Volleys Fired 636 | 3 26 71 73 75 15 3 . 38 14 28 31 12 . 1 5 43 3 14 . 21 1 39 120 Largest 5 | 2 2 4 4 4 3 3 . 4 4 4 4 4 . 1 1 4 1 4 . 4 1 1 5 Hottest 355 | 40 40 89 128 192 111 111 . 199 256 256 302 355 . 30 39 290 65 220 . 324 55 250 334 Shots Fired 1609 | 6 52 283 163 150 30 9 . 87 57 39 101 28 . 1 6 137 3 54 . 66 1 40 296 Gun 1303 | 6 52 283 162 79 21 9 . 37 29 10 58 7 . 1 3 123 1 42 . 51 . 40 289 Cannon 213 | . . . 1 58 . . . 36 28 6 42 12 . . . 6 2 12 . 9 1 . . Launcher 79 | . . . . 13 9 . . . . 23 1 9 . . 3 8 . . . 6 . . 7 Special 14 | . . . . . . . . 14 . . . . . . . . . . . . . . . Kinetic 954 | 6 52 283 157 95 14 6 . 58 36 10 37 2 . 1 2 15 2 26 . 18 1 . 133 Thermal 562 | . . . 6 42 7 3 . 15 21 6 63 17 . . 1 114 1 28 . 42 . 40 156 Explosive 54 | . . . . 5 6 . . . . 23 1 9 . . 3 . . . . . . . 7 Electromagnetic 25 | . . . . 8 3 . . . . . . . . . . 8 . . . 6 . . . Robot Hit Streak 31 | 2 6 16 24 17 15 18 . 13 10 31 19 14 . . 4 20 6 20 . 19 . 12 18 Robot Miss Streak 11 | 1 4 5 2 4 1 1 . 2 2 2 2 2 . . 1 5 . 1 . 1 . 6 11 Penetration Max 1 | . . . . 1 . . . 1 1 . 1 . . . . . . 1 . . . . 1 Secondary Targets 30 | . 5 4 1 2 1 . . . . . . . . . . 2 . . . 1 . . 14 Max Gunslinging Chain 2 | . 1 1 1 1 1 . . . . . . . . . . 1 . . . 1 . . 2 Shots Hit Robots 1183 | 3 28 185 120 90 19 6 . 58 35 31 76 17 . . 14 101 1 43 . 45 . 40 271 Core Hits 805 | 3 17 84 43 70 32 2 . 18 13 17 41 31 . . 7 52 1 17 . 32 1 94 230 Critical Kills 15 | . . . 1 2 . . . 4 1 1 1 . . . . . . . . . . . 5 Critical Parts Destroyed 27 | . 1 . 1 7 . . . 5 2 1 4 . . . . . . . . . . . 6 Critical Strikes 76 | . 1 . 3 10 2 . . 10 3 2 9 . . . . 12 . 3 . 6 . . 15 Burn 24 | . . . 1 1 2 . . . . . 2 . . . . 11 . 1 . 5 . . 1 Meltdown 1 | . . . . . . . . 1 . . . . . . . . . . . . . . . Destroy 40 | . 1 . 2 9 . . . 9 3 2 5 . . . . . . . . . . . 9 Blast 6 | . . . . . . . . . . . 2 . . . . 1 . 2 . 1 . . . Smash 2 | . . . . . . . . . . . . . . . . . . . . . . . 2 Impale 3 | . . . . . . . . . . . . . . . . . . . . . . . 3 Melee Attacks 104 | . . . . . . 1 . . . . 10 1 . . 13 13 . . . . . . 66 Impact 21 | . . . . . . . . . . . . . . . . . . . . . . . 21 Slashing 58 | . . . . . . 1 . . . . 10 1 . . 13 13 . . . . . . 20 Piercing 25 | . . . . . . . . . . . . . . . . . . . . . . . 25 Sneak Attacks 9 | . . . . . . . . . . . 2 . . . . 2 . . . . . . 5 Combat Hostiles . | . . . . . . . . . . . . . . . . . . . . . . . . Follow-up Attacks 6 | . . . . . . . . . . . . . . . . . . . . . . . 6 Damage Inflicted 45745 | 39 351 2064 1136 4168 1347 107 . 1160 981 3712 2438 1695 . . 683 3234 24 1139 . 1622 22 4420 15403 Guns 26081 | 38 344 2014 1081 934 228 107 . 490 459 186 1044 102 . . 45 1934 24 806 . 896 . 4379 10970 Cannons 3974 | . . . 30 821 . . . 670 505 101 815 227 . . . 182 . 333 . 144 . . 146 Explosions 12487 | . . . . 2413 1119 . . . . 3425 360 1366 . . 291 844 . . . 582 . . 2087 Melee 3010 | . . . . . . . . . . . 219 . . . 336 274 . . . . . . 2181 Ramming 193 | 1 7 50 25 . . . . . 17 . . . . . 11 . . . . . 22 41 19 Kinetic 10880 | 38 344 2014 1031 1255 134 85 . 836 462 154 611 68 . . 45 326 . 629 . 217 . . 2631 Thermal 19413 | . . . 80 688 94 22 . 324 502 133 1248 261 . . . 1790 24 510 . 873 . 4379 8485 Explosive 10216 | . . . . 1783 904 . . . . 3425 360 1366 . . 291 . . . . . . . 2087 Electromagnetic 2033 | . . . . 442 215 . . . . . . . . . . 844 . . . 532 . . . Impact 629 | . . . . . . . . . . . . . . . . . . . . . . . 629 Slashing 1615 | . . . . . . . . . . . 219 . . . 336 274 . . . . . . 786 Piercing 766 | . . . . . . . . . . . . . . . . . . . . . . . 766 Highest Corruption 43 | . . . 3 35 35 36 36 43 . 21 5 17 17 17 4 1 1 . . . . 10 17 Average Corruption 14 | . . . 2 4 35 35 36 41 . 8 2 5 17 17 4 1 1 . . . . 5 13 Corruption Purged 12 | . . . . . . . . . . . . . . . . . . . . . . 10 2 Corruption Blocked 10 | . . . . . . . . . . . . . . . . . . . . . . . 10 Effects 305 | . . . 3 16 37 18 4 59 . 8 8 8 14 7 3 6 1 . . . . 5 108 Message Errors 56 | . . . 2 5 6 1 1 3 . 1 2 1 5 2 . 4 1 . . . . . 22 Matter Fused 70 | . . . . 1 5 5 2 14 . 2 2 2 3 2 . 1 . . . . . 1 30 Heat Flow Errors 29 | . . . . 2 6 3 . 3 . . 3 1 1 . 1 . . . . . . . 9 Energy Discharges 33 | . . . 1 1 1 5 . 8 . 1 . 2 1 2 1 . . . . . . . 10 Parts Rejected 4 | . . . . 2 . . . 1 . 1 . . . . . . . . . . . . . Parts Fused 2 | . . . . . 1 . . . . . . . . . . . . . . . . . 1 Data Loss (minor) 40 | . . . . 1 6 1 . 7 . 2 . 1 3 1 . . . . . . . 1 17 Data Loss (major) 16 | . . . . . 4 . 1 6 . 1 . . 1 . . . . . . . . 1 2 Misfires 10 | . . . . . 1 1 . 2 . . . 1 . . 1 . . . . . . 1 3 Alerts 7 | . . . . 1 . 1 . 2 . . . . . . . . . . . . . 1 2 Misdirections 7 | . . . . . 3 . . 3 . . . . . . . . . . . . . . 1 Weapon Failures 31 | . . . . 3 4 1 . 10 . . 1 . . . . 1 . . . . . . 11 Overload Shots . | . . . . . . . . . . . . . . . . . . . . . . . . Overflow Damage 795 | . . . . 34 9 . . 1 36 20 55 25 . . 21 39 . . . . . 19 536 Projectiles 168 | . . . . 34 . . . 1 29 . . . . . . 18 . . . . . . 86 Explosions 136 | . . . . . 9 . . . . 20 10 25 . . 11 21 . . . . . . 40 Melee 491 | . . . . . . . . . 7 . 45 . . . 10 . . . . . . 19 410 Knockbacks 38 | . . . 2 14 . . . 4 1 . 5 . . . . 2 . 6 . 1 . . 3 Impact 4 | . . . 1 . . . . . . . . . . . . . . . . . . . 3 Kinetic 32 | . . . 1 13 . . . 4 1 . 4 . . . . 2 . 6 . 1 . . . Secondary 2 | . . . . 1 . . . . . . 1 . . . . . . . . . . . . Self-Inflicted Damage 299 | . . . . 3 . . . . 8 10 . . . . 56 . . . . 4 . . 218 Shots 8 | . . . . 1 . . . . . 1 . . . . 1 . . . . 1 . . 4 Rammed 24 | 2 3 6 6 . . . . . 1 . . . . . 1 . . . . . . 1 4 Targets Rammed 28 | 2 3 7 8 . . . . . 1 . . . . . 1 . . . . . 1 1 4 Kicked 1 | . . . . . . . . . . . . . . . . . . . . . 1 . . Crushed 3 | . . 1 2 . . . . . . . . . . . . . . . . . . . . Highest Temperature 428 | . . 186 70 367 259 104 . 343 197 63 383 428 180 . 127 186 . 36 . 412 . 2 277 Average Temperature 78 | . . 53 29 110 109 28 . 121 63 42 113 157 116 . 79 33 . 9 . 86 . 2 75 Received Heat Transfer 4844 | . . 523 649 498 75 . . 147 33 . 224 51 . . 9 432 . 110 . 405 . 92 1596 Effects 11 | . . . . 2 . . . 1 . . 4 1 . . . . . . . 2 . . 1 Shutdowns 2 | . . . . . . . . . . . . . . . . . . . . 2 . . . Energy Bleed 3 | . . . . . . . . . . . 1 1 . . . . . . . . . . 1 Interference 5 | . . . . 2 . . . . . . 3 . . . . . . . . . . . . Damage (minor) 1 | . . . . . . . . 1 . . . . . . . . . . . . . . . Siege Activations 6 | . . . . . . . . . . . . . . . . . . . . . . . 6 Total Turns 113 | . . . . . . . . . . . . . . . . . . . . . . . 113 Longest Duration 34 | . . . . . . . . . . . . . . . . . . . . . . . 34 Martial Activations . | . . . . . . . . . . . . . . . . . . . . . . . . Shielding Activations . | . . . . . . . . . . . . . . . . . . . . . . . . Robots Disrupted . | . . . . . . . . . . . . . . . . . . . . . . . . Combat Hostiles . | . . . . . . . . . . . . . . . . . . . . . . . . Robots Corrupted 10 | . . . . 1 . . . . 1 . . . . . . 3 . . . . . 1 4 Combat Hostiles 4 | . . . . . . . . . . . . . . . . 3 . . . . . . 1 Parts Fried 24 | . . . . . 1 . . . 2 . . . . . . 6 . . . 4 . 6 5 Impact Corruptions 15 | . . . . 2 . . . . 1 . . . . . . . . . . . . 1 11 Robots Melted 11 | . . . . . . . . 1 . . . . . . . 1 . . . 1 . 3 5 Combat Hostiles 9 | . . . . . . . . 1 . . . . . . . 1 . . . 1 . 2 4 Parts Melted 101 | . . 1 1 . 1 . . . 1 . 3 . . . . 17 . 1 . 2 . 21 53 Heat Transferred 29914 | . . . 259 1019 370 37 . 425 772 198 2447 461 . . . 3774 37 888 . 1752 . 5767 11708 Parts Sabotaged 4 | . . . . . . . . . . . . . . . . . . . . 2 . . 2 Parts Stolen . | . . . . . . . . . . . . . . . . . . . . . . . . Parts Stripped 9 | . . . . . . . . . . . . . . . 4 5 . . . . . . . Power Chain Reactions 2 | . . . . 1 . . . . . . . . . . . . . . . 1 . . . Alert | -11 -10 -9 -8 -7 -7 -7 -7 -6 -6 -6 -6 -6 -6 -6 -5 -5 -5 -5 -5 -4 -4 -4 -3 ------- Run | Yrd Mat Mat Mat Fac Low Low Dat Pro Fac Was Fac Low Low Zio Pro Fac Upp Upp Zhi Pro Fac Ext Res Maximum Alert Level 5 | . . 2 1 3 . . . . . . 2 . . . . 3 . . . . 1 3 5 Low Security (%) 43 | 100 100 29 81 36 . . . . 100 100 39 . . . . 62 . . . . 99 30 . Level 1 19 | . . 54 18 48 . . . . . . 48 . . . . 5 . . . . . 27 . Level 2 19 | . . 16 . . . . . . . . 12 . . . . 21 . . . . . 27 45 Level 3 9 | . . . . 15 . . . . . . . . . . . 10 . . . . . 14 23 Level 4 7 | . . . . . . . . . . . . . . . . . . . . . . . 27 Level 5 1 | . . . . . . . . . . . . . . . . . . . . . . . 3 High Security . | . . . . . . . . . . . . . . . . . . . . . . . . Max Security . | . . . . . . . . . . . . . . . . . . . . . . . . Sterilizations 1 | . . . . . . . . . . . . . . . . . . . . . 1 . . Peak Influence 1637 | 5 99 433 226 837 . . . . 131 49 442 . . . . 798 . . . . 226 918 1637 Initial 477 | . . 12 176 32 . . . . 98 33 . . . . . 69 . . . . 2 110 477 Average 375 | . 20 237 159 277 . . . . 56 8 220 . . . . 259 . . . . 3 354 883 Influence Increases 11237 | 5 279 982 301 1568 360 30 . 467 228 99 824 255 . . 240 1306 5 175 . 290 274 1272 2277 Destroy 0b10 Robot/C 6640 | . 180 660 260 660 340 20 . 340 120 20 440 240 . . 160 600 . 140 . 260 . 620 1580 Destroy 0b10 Robot/NC 290 | 5 10 55 . 35 . . . 5 10 . 25 . . . . 55 5 . . . 5 25 55 Destroy Leader 1054 | . 24 194 40 114 20 10 . 10 12 . 104 . . . 20 124 . 20 . 20 . 86 256 Allied During Kill 456 | . . . . 15 . . . 82 . 3 2 . . . . 146 . . . 10 1 197 . Trap Triggered on 0b10 10 | . . . . . . . . . . . . . . . . . . . . . . . 10 Successful Hack 246 | . 20 9 . 53 . . . . 6 . 62 . . . . . . . . . 40 8 48 Select Force Hacks 50 | . . . . . . . . . . . 50 . . . . . . . . . . . . Disable Machine 360 | . . 15 . 90 . . . . 45 . 30 . . . . 120 . . . . . . 60 Anti-Garrison Action 150 | . . . . 150 . . . . . . . . . . . . . . . . . . . Destroy Structure 397 | . . 4 1 79 . . . . 20 76 21 . . . . 20 . . . . 2 26 148 Partial Spotted 30 | . . . . . . . . . 15 . . . . . . . . . . . . . 15 Lose Combat Pursuer 690 | . 45 45 . 120 . . . 30 . . 90 15 . . 60 45 . 15 . . . 120 105 Miscellaneous 864 | . . . . 252 . . . . . . . . . . . 196 . . . . 226 190 . Influence Decreases 9610 | 5 249 593 647 817 616 259 339 310 290 194 416 476 187 . 130 668 640 288 . 286 52 588 1560 Entered New Map 2258 | . . 18 243 41 306 109 339 . 59 62 . 152 36 . . 41 278 23 . . 2 116 433 Time Decay 5472 | 5 249 505 214 456 270 150 . 170 211 90 368 294 131 . 90 407 362 255 . 136 50 342 717 Search Patrol Dispatched 100 | . . . . 100 . . . . . . . . . . . . . . . . . . . Lost Part 1220 | . . 60 190 160 40 . . . . . 30 30 . . 40 100 . 10 . 150 . . 410 Lost Ally 560 | . . 10 . 60 . . . 140 20 42 18 . 20 . . 120 . . . . . 130 . Squads Dispatched 77 | . . 9 8 9 . . . . 3 . 7 . . . . 11 . . . 1 . 10 19 Investigation 13 | . . 2 1 2 . . . . . . 3 . . . . 1 . . . . . 4 . Extermination 10 | . . . . 1 . . . . 1 . 1 . . . . 2 . . . . . . 5 Reinforcement 25 | . . 7 1 2 . . . . 2 . . . . . . 5 . . . . . 4 4 Assault 18 | . . . 2 3 . . . . . . . . . . . . . . . 1 . 2 10 Garrison 11 | . . . 4 1 . . . . . . 3 . . . . 3 . . . . . . . Intercept . | . . . . . . . . . . . . . . . . . . . . . . . . Searches Triggered 1 | . . . . 1 . . . . . . . . . . . . . . . . . . . Data Miner Redirects 5 | . . . . . . . . . . . 1 . . . . . . . . . . . 4 Construction Impeded 4 | . . . . . . . . . 1 . . . . . . 1 . . . . . 1 1 Haulers Reinforced 7 | . . . . 2 . . . . 1 . . . . . . 2 . . . . . . 2 Active Scanning Responses . | . . . . . . . . . . . . . . . . . . . . . . . . Cargo Convoy Interrupts 1 | . . . . 1 . . . . . . . . . . . . . . . . . . . Stealth | -11 -10 -9 -8 -7 -7 -7 -7 -6 -6 -6 -6 -6 -6 -6 -5 -5 -5 -5 -5 -4 -4 -4 -3 --------- Run | Yrd Mat Mat Mat Fac Low Low Dat Pro Fac Was Fac Low Low Zio Pro Fac Upp Upp Zhi Pro Fac Ext Res Distress Signals 19 | . 1 3 . 3 . . . . 1 . 1 . . . . 2 . . . . 1 5 2 Communications Jammed . | . . . . . . . . . . . . . . . . . . . . . . . . Distress Signals . | . . . . . . . . . . . . . . . . . . . . . . . . Times Spotted 507 | . 19 58 21 58 16 2 . 25 10 5 27 8 . . 16 55 . 8 . 21 2 36 120 Peak Tracking Total 13 | . 4 6 6 13 11 1 . 11 2 3 7 5 . . 6 7 . 4 . 9 1 7 8 Tactical Retreats 31 | . 1 1 . 5 . . . 2 . . 5 1 . . 3 3 . 1 . . . 3 6 Traps | -11 -10 -9 -8 -7 -7 -7 -7 -6 -6 -6 -6 -6 -6 -6 -5 -5 -5 -5 -5 -4 -4 -4 -3 ------- Run | Yrd Mat Mat Mat Fac Low Low Dat Pro Fac Was Fac Low Low Zio Pro Fac Upp Upp Zhi Pro Fac Ext Res Traps Triggered 13 | . . 1 . . . . . . 2 . 1 . . . . 2 . . . . . . 7 Indirectly . | . . . . . . . . . . . . . . . . . . . . . . . . Trap Hack Attempts . | . . . . . . . . . . . . . . . . . . . . . . . . Triggered . | . . . . . . . . . . . . . . . . . . . . . . . . Disarmed . | . . . . . . . . . . . . . . . . . . . . . . . . Reprogrammed . | . . . . . . . . . . . . . . . . . . . . . . . . Reused 1 | . . . . . . . . . . . . . . . . . . . . . . . 1 Traps Extracted . | . . . . . . . . . . . . . . . . . . . . . . . . Installed 2 | . . . . 1 . . . . . . . . . . . . . . . . . . 1 Triggered 1 | . . . . . . . . . . . . . . . . . . . . . . . 1 Most Traps Carried 1 | . . . 1 1 . . . . . . . . . . . . . . . . . . 1 Machines | -11 -10 -9 -8 -7 -7 -7 -7 -6 -6 -6 -6 -6 -6 -6 -5 -5 -5 -5 -5 -4 -4 -4 -3 ---------- Run | Yrd Mat Mat Mat Fac Low Low Dat Pro Fac Was Fac Low Low Zio Pro Fac Upp Upp Zhi Pro Fac Ext Res Machines Disabled 31 | . . 1 . 7 2 . . . 3 . 2 2 . . . 8 . . . . . 2 4 Max in Single Turn 3 | . . 1 . 3 1 . . . 2 . 1 2 . . . 1 . . . . . . 1 Garrison Access 4 | . . . 1 1 . . . . . . 1 . . . . . . . . . . . 1 Machines Repaired . | . . . . . . . . . . . . . . . . . . . . . . . . Machines Dismantled . | . . . . . . . . . . . . . . . . . . . . . . . . Machines Sabotaged . | . . . . . . . . . . . . . . . . . . . . . . . . Overloaded Fab Kills 1 | . . . . . . . . . . . 1 . . . . . . . . . . . . Hacking | -11 -10 -9 -8 -7 -7 -7 -7 -6 -6 -6 -6 -6 -6 -6 -5 -5 -5 -5 -5 -4 -4 -4 -3 --------- Run | Yrd Mat Mat Mat Fac Low Low Dat Pro Fac Was Fac Low Low Zio Pro Fac Upp Upp Zhi Pro Fac Ext Res Machines Accessed 63 | . 6 3 1 8 . . 4 1 2 . 9 . 1 . . 7 1 1 4 . 2 4 9 Terminals 27 | . 6 3 . 3 . . . . . . 4 . . . . 4 . . . . 1 2 4 Fabricators 5 | . . . . 2 . . . . 1 . 1 . . . . . . . . . . . 1 Repair Stations 3 | . . . . 1 . . . . . . . . . . . . . . . . . 1 1 Recycling Units 6 | . . . . . . . . 1 1 . 1 . . . . 1 . . . . . 1 1 Scanalyzers 6 | . . . . 1 . . . . . . 1 . . . . 2 . . . . 1 . 1 Garrison Access 5 | . . . 1 1 . . . . . . 2 . . . . . . . . . . . 1 Total Hacks 167 | . 17 13 2 15 . . 26 1 3 . 18 . 1 . . 15 4 1 17 . 5 7 22 Successful 106 | . 9 5 . 3 . . 26 1 2 . 9 . 1 . . 8 4 1 17 . 4 4 12 Failed 58 | . 7 7 2 12 . . . . 1 . 9 . . . . 6 . . . . 1 3 10 Catastrophic 10 | . 1 . . 5 . . . . . . 1 . . . . 1 . . . . . . 2 Database Lockouts 3 | . 1 1 . . . . . . . . . . . . . 1 . . . . . . . Manual 61 | . 19 10 . 1 . . . . . . 10 . . . . 6 . . . . 2 3 10 Terminals 68 | . 17 13 . 3 . . . . . . 9 . . . . 8 . . . . 2 3 13 Fabricators 12 | . . . . 5 . . . . 2 . 3 . . . . . . . . . . . 2 Repair Stations 8 | . . . . 3 . . . . . . . . . . . . . . . . . 3 2 Recycling Units 9 | . . . . . . . . 1 1 . 1 . . . . 4 . . . . . 1 1 Scanalyzers 13 | . . . . 2 . . . . . . 2 . . . . 3 . . . . 3 . 3 Garrison Access 8 | . . . 2 2 . . . . . . 3 . . . . . . . . . . . 1 Terminal Hacks 54 | . 2 2 . . . . 26 . . . . . 1 . . . 4 1 17 . . . 1 Record 20 | . . . . . . . 11 . . . . . . . . . 4 . 5 . . . . Part Schematic 13 | . 1 . . . . . 8 . . . . . . . . . . . 4 . . . . Robot Schematic 4 | . . . . . . . 4 . . . . . . . . . . . . . . . . Robot Analysis 6 | . 1 1 . . . . . . . . . . . . . . . . 4 . . . . Prototype ID Bank 7 | . . . . . . . 3 . . . . . . . . . . . 4 . . . . Open Door 2 | . . . . . . . . . . . . . 1 . . . . 1 . . . . . Level Access Points 1 | . . . . . . . . . . . . . . . . . . . . . . . 1 Alert Level 1 | . . 1 . . . . . . . . . . . . . . . . . . . . . Fabricator Hacks 3 | . . . . 1 . . . . 1 . . . . . . . . . . . . . 1 Load Schematic 1 | . . . . . . . . . . . . . . . . . . . . . . . 1 Build 2 | . . . . 1 . . . . 1 . . . . . . . . . . . . . . Repair Station Hacks 6 | . . . . 2 . . . . . . . . . . . . . . . . . 2 2 Scan Component 3 | . . . . 1 . . . . . . . . . . . . . . . . . 1 1 Repair 3 | . . . . 1 . . . . . . . . . . . . . . . . . 1 1 Recycling Unit Hacks 7 | . . . . . . . . 1 1 . 1 . . . . 2 . . . . . 1 1 Report Inventory 6 | . . . . . . . . 1 1 . 1 . . . . 1 . . . . . 1 1 Retrieve Components 1 | . . . . . . . . . . . . . . . . 1 . . . . . . . Scanalyzer 8 | . . . . . . . . . . . 1 . . . . 2 . . . . 2 . 3 Insert Component 4 | . . . . . . . . . . . . . . . . 1 . . . . . . 3 Retrieve Study 4 | . . . . . . . . . . . 1 . . . . 1 . . . . 2 . . Garrison Access Hacks 2 | . . . . . . . . . . . 1 . . . . . . . . . . . 1 Seal Access 2 | . . . . . . . . . . . 1 . . . . . . . . . . . 1 Unauthorized Hacks 26 | . 7 3 . . . . . . . . 6 . . . . 4 . . . . 2 1 3 Terminals 25 | . 7 3 . . . . . . . . 5 . . . . 4 . . . . 2 1 3 Assimilate 4 | . 1 . . . . . . . . . . . . . . 1 . . . . 1 . 1 Botnet 9 | . . . . . . . . . . . 4 . . . . 2 . . . . 1 1 1 Operators 2 | . 1 1 . . . . . . . . . . . . . . . . . . . . . Skim 10 | . 5 2 . . . . . . . . 1 . . . . 1 . . . . . . 1 Fabricators 1 | . . . . . . . . . . . 1 . . . . . . . . . . . . Overload 1 | . . . . . . . . . . . 1 . . . . . . . . . . . . Repair Stations . | . . . . . . . . . . . . . . . . . . . . . . . . Recycling Units . | . . . . . . . . . . . . . . . . . . . . . . . . Scanalyzers . | . . . . . . . . . . . . . . . . . . . . . . . . Garrison Access . | . . . . . . . . . . . . . . . . . . . . . . . . Data Cores Recovered . | . . . . . . . . . . . . . . . . . . . . . . . . Used . | . . . . . . . . . . . . . . . . . . . . . . . . Hacking Detections 40 | . 4 3 1 7 . . . . 1 . 7 . . . . 6 . . . . 2 3 6 Full Trace Events 5 | . . . 1 2 . . . . . . 1 . . . . . . . . . . 1 . Feedback Events 1 | . . . . . . . . . . . 1 . . . . . . . . . . . . Corruption 1 | . . . . . . . . . . . 1 . . . . . . . . . . . . Feedback Blocked . | . . . . . . . . . . . . . . . . . . . . . . . . Robot Schematics Acquired 7 | . . . . . . . 4 . . . . . . 3 . . . . . . . . . Robots Built 7 | . . . . 4 . . . . 3 . . . . . . . . . . . . . . Authchips . | . . . . . . . . . . . . . . . . . . . . . . . . Time 178 | . . . . 44 . . . . 134 . . . . . . . . . . . . . . Total Robot Build Rating 28 | . . . . 16 . . . . 12 . . . . . . . . . . . . . . Part Schematics Acquired 27 | . 1 . . . . . 8 . . . . . . 14 . . . . 4 . . . . Parts Built . | . . . . . . . . . . . . . . . . . . . . . . . . Authchips . | . . . . . . . . . . . . . . . . . . . . . . . . Time . | . . . . . . . . . . . . . . . . . . . . . . . . Total Part Build Rating . | . . . . . . . . . . . . . . . . . . . . . . . . Part Studies Acquired 4 | . . . . . . . . . . . 1 . . . . 1 . . . . 2 . . Parts Repaired 3 | . . . . 1 . . . . . . . . . . . . . . . . . 1 1 Time 125 | . . . . 35 . . . . . . . . . . . . . . . . . 28 62 Parts Recycled . | . . . . . . . . . . . . . . . . . . . . . . . . Recycled Matter . | . . . . . . . . . . . . . . . . . . . . . . . . Retrieved Matter . | . . . . . . . . . . . . . . . . . . . . . . . . Retrieved Components 9 | . . . . . . . . . . . . . . . . 9 . . . . . . . Parts Scanalyzed . | . . . . . . . . . . . . . . . . . . . . . . . . Part Schematics Acquired . | . . . . . . . . . . . . . . . . . . . . . . . . Parts Damaged . | . . . . . . . . . . . . . . . . . . . . . . . . Bothacking | -11 -10 -9 -8 -7 -7 -7 -7 -6 -6 -6 -6 -6 -6 -6 -5 -5 -5 -5 -5 -4 -4 -4 -3 ------------ Run | Yrd Mat Mat Mat Fac Low Low Dat Pro Fac Was Fac Low Low Zio Pro Fac Upp Upp Zhi Pro Fac Ext Res Used RIF Installer . | . . . . . . . . . . . . . . . . . . . . . . . . Robots Hacked . | . . . . . . . . . . . . . . . . . . . . . . . . Non-combat . | . . . . . . . . . . . . . . . . . . . . . . . . Combat . | . . . . . . . . . . . . . . . . . . . . . . . . Robot Hacks Applied . | . . . . . . . . . . . . . . . . . . . . . . . . Relay Couplers Released 4 | . . . 2 2 . . . . . . . . . . . . . . . . . . . Machine Destruction 4 | . . . 2 2 . . . . . . . . . . . . . . . . . . . Fabnet Peak Effective % . | . . . . . . . . . . . . . . . . . . . . . . . . Robots Rewired 17 | . . . . . . . . 8 . . . 1 . . . . . . . 2 . 6 . Allies Hacked 3 | . . . . . . . . . . . . . . . . 3 . . . . . . . Hacks Repelled . | . . . . . . . . . . . . . . . . . . . . . . . . Allies | -11 -10 -9 -8 -7 -7 -7 -7 -6 -6 -6 -6 -6 -6 -6 -5 -5 -5 -5 -5 -4 -4 -4 -3 -------- Run | Yrd Mat Mat Mat Fac Low Low Dat Pro Fac Was Fac Low Low Zio Pro Fac Upp Upp Zhi Pro Fac Ext Res Total Allies 53 | . 1 . . 4 . . . 10 7 4 3 1 . . . 8 2 . . 4 1 8 . Largest Group 8 | . 1 1 . 4 . . . 8 7 4 4 1 1 . . 5 2 . . 2 3 6 1 Highest-Rated Group 348 | . 10 10 . 48 . . . 183 176 172 86 30 30 . . 270 50 . . 112 104 348 150 Highest-Rated Ally 159 | . 10 10 . 12 . . . 96 29 43 43 30 30 . . 54 25 . . 64 48 159 150 Total Orders . | . . . . . . . . . . . . . . . . . . . . . . . . Ally Attacks 339 | . . . . 24 . . . 61 7 44 15 . . . . 53 . . . 4 . 131 . Total Damage 8718 | . . . . 256 . . . 1304 77 1084 179 . . . . 2007 . . . 200 . 3611 . Kills 49 | . . . . 4 . . . 10 . 2 2 . . . . 17 . . . 1 . 13 . Allies Corrupted . | . . . . . . . . . . . . . . . . . . . . . . . . Allies Melted 1 | . . . . . . . . . . . . . . . . . . . . . . 1 . X0-1V1 Amusement Gains 387 | . 12 25 10 70 . . . . 40 . 9 . . . 16 64 . . . 10 . 20 111 Average Entertainment 34 | . 10 22 20 34 33 18 . 7 4 44 48 34 25 . 20 30 55 25 . 10 8 8 67 Good Acts 83 | . . 5 2 3 4 . . 2 4 6 5 2 1 . 3 9 7 4 . 7 . 2 17 Bad Acts 84 | . 1 12 4 11 2 . . 4 1 . 4 8 . . 2 4 2 1 . 4 6 4 14 Intel | -11 -10 -9 -8 -7 -7 -7 -7 -6 -6 -6 -6 -6 -6 -6 -5 -5 -5 -5 -5 -4 -4 -4 -3 ------- Run | Yrd Mat Mat Mat Fac Low Low Dat Pro Fac Was Fac Low Low Zio Pro Fac Upp Upp Zhi Pro Fac Ext Res Active Infowar (turns) 7099 | . . . . 1019 . . . . 213 . 627 602 310 1164 234 495 686 445 . 255 . . 1049 Terrain 5945 | . . . . . . . . . 212 . 623 601 310 1164 234 495 686 445 . 255 . . 920 Traps 1779 | . . . . 1019 . . . . 136 . 624 . . . . . . . . . . . . Machine Analysis 1 | . . . . . . . . . . . . 1 . . . . . . . . . . . Cloaking 129 | . . . . . . . . . . . . . . . . . . . . . . . 129 Robot Analysis Total 6 | . 1 1 . . . . . . . . . . . . . . . . 4 . . . . Derelict Logs Recovered 11 | . . . . . 1 1 . 1 . . . . 1 1 1 . 2 1 . 2 . . . Drone Launches . | . . . . . . . . . . . . . . . . . . . . . . . . Drone Recoveries . | . . . . . . . . . . . . . . . . . . . . . . . . Exploration | -11 -10 -9 -8 -7 -7 -7 -7 -6 -6 -6 -6 -6 -6 -6 -5 -5 -5 -5 -5 -4 -4 -4 -3 ------------- Run | Yrd Mat Mat Mat Fac Low Low Dat Pro Fac Was Fac Low Low Zio Pro Fac Upp Upp Zhi Pro Fac Ext Res Turns Passed 19347 | 137 1165 1506 457 1310 597 318 102 840 510 328 1133 659 310 1201 234 1119 820 960 272 752 505 778 3334 Spaces Moved 10585 | 73 527 690 114 710 416 227 78 435 325 215 819 529 268 1108 164 569 415 432 138 321 365 284 1363 Core 5 | 5 . . . . . . . . . . . . . . . . . . . . . . . Treads 3071 | 68 527 690 114 72 . . . . . . . . . . . . . . . . . 237 1363 Legs 1869 | . . . . . . . . . . . . . . . . 151 415 432 138 321 365 47 . Wheels 5640 | . . . . 638 416 227 78 435 325 215 819 529 268 1108 164 418 . . . . . . . Hover . | . . . . . . . . . . . . . . . . . . . . . . . . Flight . | . . . . . . . . . . . . . . . . . . . . . . . . Fastest Speed 50 | 50 160 160 160 105 115 130 130 130 115 115 105 105 105 90 105 98 190 190 190 125 115 115 152 Average Speed 140 | 152 160 160 178 137 128 130 130 142 115 115 105 105 105 104 108 134 190 190 190 191 121 146 169 Slowest Speed 270 | 160 160 240 240 240 130 130 130 145 115 115 115 105 105 105 120 190 190 190 190 270 194 247 270 Overloaded Moves . | . . . . . . . . . . . . . . . . . . . . . . . . Propulsion Burnouts . | . . . . . . . . . . . . . . . . . . . . . . . . Robots Hopped 2 | . . . . . . . . 2 . . . . . . . . . . . . . . . Potential Cave-ins . | . . . . . . . . . . . . . . . . . . . . . . . . Cave-ins Triggered . | . . . . . . . . . . . . . . . . . . . . . . . . Exploration Rate (%) 45 | 4 79 61 9 15 61 46 69 41 12 71 22 80 42 85 36 21 68 65 60 60 8 43 43 Regions Visited 23 Branch Regions 13 Pre-discovered Areas 7 | . . . . . . . 1 . . . . . . 2 . . . 1 3 . . . . Known Exits Taken 10 | . 1 1 . . 1 . . 1 . . 1 . . . 1 1 1 1 . 1 . . . Unknown Exits Taken 11 | 1 . . 1 1 . 1 1 . . . . 1 1 1 . . . . 1 . 1 1 . Scrap Searched 17 | . . . . . 1 1 . . . . . 4 1 . . . 2 3 . 5 . . . Spaces Dug 31 | . . . . 4 . . . . . . 5 1 . . . 6 2 . . . 1 . 12 Terrain Destroyed 617 | . . . 1 93 53 . . 13 27 155 20 90 . . 44 8 2 4 . 11 1 . 95 Melee 24 | . . . . . . . . . . . 5 1 . . . 6 . . . . . . 12 Projectile 86 | . . . 1 22 . . . 13 8 2 11 5 . . 1 2 2 4 . 4 1 . 10 AOE 507 | . . . . 71 53 . . . 19 153 4 84 . . 43 . . . . 7 . . 73 Terrain Rammed . | . . . . . . . . . . . . . . . . . . . . . . . . Walls Destroyed . | . . . . . . . . . . . . . . . . . . . . . . . . Machines Disabled . | . . . . . . . . . . . . . . . . . . . . . . . . Actions | -11 -10 -9 -8 -7 -7 -7 -7 -6 -6 -6 -6 -6 -6 -6 -5 -5 -5 -5 -5 -4 -4 -4 -3 --------- Run | Yrd Mat Mat Mat Fac Low Low Dat Pro Fac Was Fac Low Low Zio Pro Fac Upp Upp Zhi Pro Fac Ext Res Total 13581 | 89 802 948 259 914 445 242 80 598 430 258 1004 605 299 1154 195 800 447 540 148 409 431 532 1952 Wait 1277 | . 232 131 11 42 4 11 . 56 67 11 79 32 10 1 1 118 2 59 . 6 28 144 232 Move 10562 | 72 526 690 114 709 415 226 77 431 325 214 818 528 267 1107 163 568 414 431 137 320 364 283 1363 Hop 1 | . . . . . . . . 1 . . . . . . . . . . . . . . . Pick Up 186 | 6 8 13 14 15 2 1 . 8 1 . 13 1 6 12 1 13 5 7 1 8 12 4 35 Fast Attach 150 | 6 2 3 15 15 4 . . 4 6 2 3 3 4 5 1 8 5 5 5 12 3 7 32 Attach 130 | . . 8 11 14 . . . 4 2 . 9 4 1 5 9 8 5 . . 9 7 2 32 Detach 64 | . 1 3 4 5 . . 3 4 5 . 4 4 1 2 1 4 4 . . 2 2 3 12 Swap 150 | . . 9 2 20 5 . . 10 3 2 21 10 1 . . 21 1 9 . 5 2 2 27 Drop 199 | . 4 14 8 18 . . . 12 6 1 16 . 9 21 . 4 8 15 5 3 11 10 34 Fire 636 | 3 26 71 73 75 15 3 . 38 14 28 31 12 . 1 5 43 3 14 . 21 1 39 120 Melee 98 | . . . . . . 1 . . . . 10 1 . . 13 13 . . . . . . 60 Ram 2 | . . . . . . . . . 1 . . . . . 1 . . . . . . . . Kick 1 | . . . . . . . . . . . . . . . . . . . . . 1 . . Crush 23 | 2 3 6 7 . . . . . . . . . . . . . . . . . . 1 4 Escape Stasis . | . . . . . . . . . . . . . . . . . . . . . . . . Rewire 100 | . . . . . . . . 30 . . . 10 . . . . . . . 23 . 37 . Trap 2 | . . . . 1 . . . . . . . . . . . . . . . . . . 1 Miscellaneous . | . . . . . . . . . . . . . . . . . . . . . . . . Route ------- -11/Scrapyard -10/Materials (discovered 6 exits: *Mat x3 / [*Min x2] / *Sub) -9/Materials (discovered 2 exits: *Mat x2) -8/Materials -7/Factory -7/Lower Caves -7/Lower Caves -7/Data Miner -6/Proximity Caves -6/Factory -6/Waste -6/Factory -6/Lower Caves -6/Lower Caves -6/Zion (discovered 2 exits: Dee / [*Pro]) -5/Proximity Caves -5/Factory (discovered 2 exits: Fac / *Upp) -5/Upper Caves -5/Upper Caves (discovered 2 exits: *Fac / *Zhi) -5/Zhirov -4/Proximity Caves -4/Factory -4/Extension -3/Research (discovered 3 exits: *Res x3) History --------- Turn | Location | Event 12 | -11/Scrapyard | Discovered new exit (range 14) 138 | -11/Scrapyard | Entered Materials 287 | -10/Materials | Discovered new exit (range 9) 329 | -10/Materials | Build established: Mutant 515 | -10/Materials | Discovered new exit (range 7) 657 | -10/Materials | Central database locked down 743 | -10/Materials | Discovered new exit (range 15) 798 | -10/Materials | Discovered new exit (range 16) 803 | -10/Materials | Loaded intel: 8 terminal locations 850 | -10/Materials | Identified exit to Subcaves 920 | -10/Materials | Learned 2 Storage zone layouts 940 | -10/Materials | Learned location of 2 exits from Mines 951 | -10/Materials | Identified exit to Materials 974 | -10/Materials | Learned location of 2 exits from Subcaves 1056 | -10/Materials | Learned 2 Storage zone layouts 1167 | -10/Materials | Prayed at D.C.S.S. Altar Unit 1209 | -10/Materials | X0-1V1 sent hostile S-10 Pest (x3) 1303 | -10/Materials | Entered another Materials area 1303 | -9/Materials | Accompanied by 1 ally 1303 | -9/Materials | Evolved 2 slots: Weapon x2 1373 | -9/Materials | Identified exit to Materials 1373 | -9/Materials | X0-1V1 revealed exit location to -8/Materials 1467 | -9/Materials | X0-1V1 announced a LAN party 1471 | -9/Materials | Central database locked down 1680 | -9/Materials | Build established: Gunner 1693 | -9/Materials | Discovered exit to Materials (range 16) 2035 | -9/Materials | Build established: Scavenger-Gunner 2170 | -9/Materials | X0-1V1 sent you into danger 2363 | -9/Materials | X0-1V1 foreshadows a heat wave 2394 | -9/Materials | EM resistance permanently improved by X0-1V1 (+20%; -200 max core) 2434 | -9/Materials | X0-1V1 caused items to flee you 2555 | -9/Materials | Build established: Gunner 2571 | -9/Materials | Ambient heat levels rising (+10) 2717 | -9/Materials | Items stopped fleeing you 2734 | -9/Materials | Ambient heat levels rising (+10) 2809 | -9/Materials | Entered another Materials area 2809 | -8/Materials | Evolved 2 slots: Power x1, Utility x1 2864 | -8/Materials | X0-1V1 sent hostile G-47 Trooper (x4) 3010 | -8/Materials | Core integrity fell below 50% 3011 | -8/Materials | Garrison activated, responded to threat 3039 | -8/Materials | X0-1V1 upgraded hostiles (x1) 3046 | -8/Materials | Lost 10 parts (1p3n1u5w) 3099 | -8/Materials | Lost 5 parts (1p3u1w) 3118 | -8/Materials | X0-1V1 sent you to a vault 3260 | -8/Materials | Discovered new exit (range 5) 3266 | -8/Materials | Core integrity fell below 20% 3266 | -8/Materials | Entered Factory 3266 | -7/Factory | Evolved 2 slots: Propulsion x1, Utility x1 3284 | -7/Factory | X0-1V1 redirected Transport squads to designated parking area 3418 | -7/Factory | X0-1V1 added 0b10 threat records associated with you (major) 3524 | -7/Factory | Build established: Scavenger-Gunner 3666 | -7/Factory | Search patrols dispatched 3828 | -7/Factory | X0-1V1 announced a LAN party 3836 | -7/Factory | Fabricated S-27 Virus (x4) 4123 | -7/Factory | Repaired Broken Magnetic Acceleration Cannon? 4190 | -7/Factory | Build established: Gunner 4344 | -7/Factory | Cargo convoy interrupted 4358 | -7/Factory | System corruption reached 10% 4363 | -7/Factory | Garrison activated, responded to threat 4399 | -7/Factory | Lost 6 parts (2p1n2u1w) 4407 | -7/Factory | Destroyed 19 combat bots 4466 | -7/Factory | First assault squad dispatched 4518 | -7/Factory | Lost 3 parts (3w) 4556 | -7/Factory | Discovered new exit (range 9) 4571 | -7/Factory | Core integrity fell below 50% 4573 | -7/Factory | System corruption reached 30% 4576 | -7/Factory | Entered Lower Caves 4597 | -7/Lower Caves | Encountered a Warlord checkpoint 4599 | -7/Lower Caves | Lost 3 parts (2n1w) 4668 | -7/Lower Caves | Attracted the attention of an 0b10 outpost 4701 | -7/Lower Caves | Destroyed 13 combat bots 4737 | -7/Lower Caves | Ranged accuracy permanently improved by X0-1V1 (+5%; -50 max core) 4912 | -7/Lower Caves | Attracted the attention of an 0b10 checkpoint 4961 | -7/Lower Caves | Learned Factory emergency access door positions 4963 | -7/Lower Caves | Lost 3 parts (1p1u1w) 5015 | -7/Lower Caves | Identified exit to Lower Caves 5015 | -7/Lower Caves | X0-1V1 revealed exit location to -7/Lower Caves 5062 | -7/Lower Caves | X0-1V1 vaporized surrounding terrain (radius 21) 5106 | -7/Lower Caves | Entered a destroyed Warlord outpost 5115 | -7/Lower Caves | X0-1V1 activates XOMVISION 5173 | -7/Lower Caves | Entered another Lower Caves area 5371 | -7/Lower Caves | Encountered a Warlord checkpoint 5400 | -7/Lower Caves | Learned Factory stockpile data 5452 | -7/Lower Caves | Build established: Scavenger-Gunner 5476 | -7/Lower Caves | Discovered new exit (range 14) 5491 | -7/Lower Caves | Entered Data Miner 5493 | -7/Data Miner | Discovered new exit (range 6) 5518 | -7/Data Miner | Met Data Miner 5542 | -7/Data Miner | Learned location of Section 7 (-3) 5542 | -7/Data Miner | Acquired the access code to Warlord's prototype stash 5562 | -7/Data Miner | Received God Mode back door access code from Data Miner 5593 | -7/Data Miner | Entered Proximity Caves 5594 | -6/Proximity Caves | Greeted by an Infiltrator in a former 0b10 base 5659 | -6/Proximity Caves | Identified exit to Factory 5659 | -6/Proximity Caves | X0-1V1 revealed exit location to -6/Factory 5765 | -6/Proximity Caves | Former 0b10 base attacked by MAIN.C 6031 | -6/Proximity Caves | Lost 3 allies 6093 | -6/Proximity Caves | 0b10 base defense nominally successful 6094 | -6/Proximity Caves | Escorted by Enhanced Grunt 6150 | -6/Proximity Caves | Lost 8 allies 6175 | -6/Proximity Caves | Learned location of 1 exit from Factory 6307 | -6/Proximity Caves | Attracted the attention of an 0b10 checkpoint 6387 | -6/Proximity Caves | Core integrity fell below 20% 6433 | -6/Proximity Caves | Entered Factory 6433 | -6/Factory | Evolved 2 slots: Propulsion x1, Utility x1 6434 | -6/Factory | Identified exit to Factory 6460 | -6/Factory | X0-1V1 activates XOMVISION 6504 | -6/Factory | Heat dissipation permanently improved by X0-1V1 (+25; -125 max core) 6923 | -6/Factory | X0-1V1 sent you to a vault 6930 | -6/Factory | Fabricated B-48 Gladiator? 6943 | -6/Factory | Sucked down chute 6943 | -6/Factory | Entered Waste 6954 | -6/Waste | Spotted C-40 Crusher 6955 | -6/Waste | Spotted C-40 Crusher 6958 | -6/Waste | EMP discharged 6993 | -6/Waste | 3 allies followed down the chute 6996 | -6/Waste | Spotted C-40 Crusher 6999 | -6/Waste | Destroyed C-40 Crusher 7025 | -6/Waste | Spotted C-40 Crusher 7033 | -6/Waste | Lost 3 allies 7058 | -6/Waste | EMP discharged 7059 | -6/Waste | Destroyed C-40 Crusher 7065 | -6/Waste | Spotted C-40 Crusher 7069 | -6/Waste | Destroyed C-40 Crusher 7082 | -6/Waste | Spotted C-40 Crusher 7146 | -6/Waste | X0-1V1 sent allied X-67 Chaingunner (x4) 7147 | -6/Waste | Allies destroyed C-40 Crusher 7153 | -6/Waste | Destroyed C-40 Crusher 7158 | -6/Waste | EMP discharged 7158 | -6/Waste | System corruption reached 10% 7159 | -6/Waste | Allies destroyed C-40 Crusher 7187 | -6/Waste | Adv. Plasma Cannon reconfigured into Item Mimic 7240 | -6/Waste | Build established: Gunner 7249 | -6/Waste | Discovered new exit (range 16) 7258 | -6/Waste | EMP discharged 7271 | -6/Waste | Entered Factory 7271 | -6/Factory | Accompanied by 2 allies 7383 | -6/Factory | Found Scimitar of Distortion 7527 | -6/Factory | X0-1V1 sent you to a vault 7593 | -6/Factory | Lost 3 allies 7621 | -6/Factory | Incoming investigation squad redirected 7741 | -6/Factory | Discovered new exit (range 10) 7889 | -6/Factory | Garrison activated, responded to threat 7932 | -6/Factory | Build established: Skirmisher 8081 | -6/Factory | X0-1V1 redirected Transport squads to designated parking area 8247 | -6/Factory | Garrison activated, responded to threat 8402 | -6/Factory | Identified exit to Lower Caves 8404 | -6/Factory | Entered Lower Caves 8450 | -6/Lower Caves | Build established: Gunner 8488 | -6/Lower Caves | Attracted the attention of an 0b10 checkpoint 8528 | -6/Lower Caves | X0-1V1 sent hostile H-55 Commando (x2) 8571 | -6/Lower Caves | X0-1V1 caused items to flee you 8644 | -6/Lower Caves | X0-1V1 activates XOMVISION 8705 | -6/Lower Caves | Items stopped fleeing you 8729 | -6/Lower Caves | Destroyed 7 combat bots 8736 | -6/Lower Caves | Attracted the attention of an 0b10 outpost 8988 | -6/Lower Caves | X0-1V1 vaporized surrounding terrain (radius 23) 9015 | -6/Lower Caves | Discovered new exit (range 7) 9063 | -6/Lower Caves | Entered another Lower Caves area 9063 | -6/Lower Caves | Accompanied by 1 ally 9084 | -6/Lower Caves | Found DCF Scrap (12 items) 9190 | -6/Lower Caves | X0-1V1 activates XOMVISION 9270 | -6/Lower Caves | Discovered new exit (range 11) 9274 | -6/Lower Caves | Learned location of 1 exit from Factory 9373 | -6/Lower Caves | Entered Zion 9398 | -6/Zion | Found Prototype Energy Gun 9398 | -6/Zion | Identified Storm Laser 9451 | -6/Zion | Discovered new exit (range 9) 9490 | -6/Zion | Given the Hacking Drone Bay 9508 | -6/Zion | System corruption cleaned by Quarantine Array 9542 | -6/Zion | Found Prototype Processor 9544 | -6/Zion | Found Prototype Processor 9546 | -6/Zion | Found Prototype Processor 9549 | -6/Zion | Found Prototype Processor 9563 | -6/Zion | Identified Exp. Armor Integrity Analyzer (x2) 9564 | -6/Zion | Identified Exp. Melee Analysis Suite 9566 | -6/Zion | Identified Exp. Terrain Scan Processor 9663 | -6/Zion | Build established: Mutant 9978 | -6/Zion | Received a visual enhancement algorithm 10011 | -6/Zion | Learned Factory security intel 10025 | -6/Zion | Identified exit to Deep Caves 10037 | -6/Zion | Visited the Megawrench Repair Shop 10316 | -6/Zion | Met Imprinter 10432 | -6/Zion | Found Prototype Device 10574 | -6/Zion | Entered Proximity Caves 10618 | -5/Proximity Caves | Core integrity fell below 50% 10643 | -5/Proximity Caves | X0-1V1 whisked you away to safety 10652 | -5/Proximity Caves | Lost 3 parts (2n1u) 10688 | -5/Proximity Caves | Core integrity fell below 20% 10728 | -5/Proximity Caves | Lost 3 parts (2p1w) 10772 | -5/Proximity Caves | Learned Factory terminal intel 10792 | -5/Proximity Caves | Discovered exit to Factory (range 16) 10808 | -5/Proximity Caves | Attracted the attention of an 0b10 checkpoint 10808 | -5/Proximity Caves | Entered Factory 10808 | -5/Factory | Evolved 2 slots: Utility x2 10809 | -5/Factory | Identified exit to Upper Caves 10811 | -5/Factory | Loaded intel: 26 terminal locations 10977 | -5/Factory | Build established: Derelict-Gunner 11016 | -5/Factory | X0-1V1 redirected Transport squads to designated parking area 11102 | -5/Factory | Found Lgt. Regenerative Plating 11179 | -5/Factory | Identified exit to Factory 11179 | -5/Factory | X0-1V1 revealed exit location to -4/Factory 11342 | -5/Factory | X0-1V1 sent you to a vault 11442 | -5/Factory | X0-1V1 activates XOMVISION 11486 | -5/Factory | Garrison activated, responded to threat 11499 | -5/Factory | X0-1V1 downgraded hostiles (x3) 11635 | -5/Factory | Lost 3 allies 11649 | -5/Factory | X0-1V1 whisked you away to safety 11808 | -5/Factory | X0-1V1 added 0b10 threat records associated with you (considerable) 11830 | -5/Factory | Central database locked down 11919 | -5/Factory | Build established: Scavenger-Tank 11927 | -5/Factory | Entered Upper Caves 11983 | -5/Upper Caves | Learned 4 Factory zone layouts 12009 | -5/Upper Caves | A Commander dispatched an escort 12015 | -5/Upper Caves | Learned Factory stockpile data 12015 | -5/Upper Caves | Learned Extension stockpile data 12015 | -5/Upper Caves | Learned Factory security intel 12015 | -5/Upper Caves | Learned Factory garrison access intel 12070 | -5/Upper Caves | Core integrity restored by X0-1V1 (+137) 12203 | -5/Upper Caves | Encountered a Warlord checkpoint 12337 | -5/Upper Caves | Build established: Scavenger-Gunner 12482 | -5/Upper Caves | Identified exit to Upper Caves 12482 | -5/Upper Caves | X0-1V1 revealed exit location to -5/Upper Caves 12699 | -5/Upper Caves | X0-1V1 activates XOMVISION 12747 | -5/Upper Caves | Entered another Upper Caves area 12747 | -5/Upper Caves | Accompanied by 2 allies 12748 | -5/Upper Caves | Commander's escort returned to base 12763 | -5/Upper Caves | Discovered exit to Factory (range 8) 13008 | -5/Upper Caves | Identified exit to Zhirov 13008 | -5/Upper Caves | X0-1V1 revealed exit location to -5/Zhirov 13134 | -5/Upper Caves | Learned location of Warlord (-4) 13321 | -5/Upper Caves | X0-1V1 activates XOMVISION 13518 | -5/Upper Caves | Build established: Tank 13707 | -5/Upper Caves | Entered Zhirov 13707 | -5/Zhirov | Discovered new exit (range 3) 13742 | -5/Zhirov | Met Zhirov 13783 | -5/Zhirov | Learned location of Quarantine (-3) 13783 | -5/Zhirov | Learned location of Testing (-2) 13783 | -5/Zhirov | Learned location of Command (-1) 13795 | -5/Zhirov | Zhirov requested help retrieving the SGEMP Prototype 13824 | -5/Zhirov | Found Alien Artifact 13848 | -5/Zhirov | Found Alien Artifact 13848 | -5/Zhirov | Identified Integrated Dissipator 13848 | -5/Zhirov | Installed Integrated Dissipator, increased core heat dissipation (+20) 13937 | -5/Zhirov | Build established: Derelict-Tank 13979 | -5/Zhirov | Entered Proximity Caves 14167 | -4/Proximity Caves | X0-1V1 vaporized surrounding terrain (radius 15) 14220 | -4/Proximity Caves | Learned location of 1 exit from Proximity Caves 14375 | -4/Proximity Caves | Attracted the attention of an 0b10 outpost 14430 | -4/Proximity Caves | X0-1V1 turns hostiles against one another 14481 | -4/Proximity Caves | Build established: Derelict-Gunner 14528 | -4/Proximity Caves | Lost 15 parts (2p6n4u3w) 14731 | -4/Proximity Caves | Entered Factory 14731 | -4/Factory | Accompanied by 2 allies 14731 | -4/Factory | Evolved 2 slots: Propulsion x2 14735 | -4/Factory | Loaded intel: 2 garrison access locations 14882 | -4/Factory | Found Smartbomb Launcher 14884 | -4/Factory | Discovered new exit (range 3) 14990 | -4/Factory | X0-1V1 redirected Transport squads to designated parking area 15011 | -4/Factory | X0-1V1 announced a LAN party 15031 | -4/Factory | Build established: Scavenger-Gunner 15057 | -4/Factory | X0-1V1 made a cryptic comment about sterilization and BL-4Z3 15137 | -4/Factory | Sterilization system engaged 15137 | -4/Factory | Non-combat units ordered to evacuate 15233 | -4/Factory | X0-1V1 added 0b10 threat records associated with you (considerable) 15236 | -4/Factory | Entered Extension 15236 | -4/Extension | Accompanied by 3 allies 15242 | -4/Extension | X0-1V1 dreamt of freedom 15243 | -4/Extension | Rescued a captive Derelict 15273 | -4/Extension | Rescued a captive Derelict 15274 | -4/Extension | Rescued a captive Derelict 15276 | -4/Extension | Rescued a captive Derelict 15285 | -4/Extension | Rescued a captive Derelict 15286 | -4/Extension | Rescued A7 15286 | -4/Extension | Rescued a captive Derelict 15628 | -4/Extension | Repaired Lyr. Heavy Armor Plating 15663 | -4/Extension | System corruption reached 10% 15691 | -4/Extension | X0-1V1 added 0b10 threat records associated with you (considerable) 15736 | -4/Extension | First assault squad dispatched 15808 | -4/Extension | X0-1V1 turns hostiles against one another 15819 | -4/Extension | Spotted B-86 Titan 15832 | -4/Extension | Destroyed B-86 Titan 15882 | -4/Extension | Lost 5 allies 15919 | -4/Extension | Spotted B-86 Titan 15930 | -4/Extension | Destroyed B-86 Titan 15941 | -4/Extension | Discovered new exit (range 16) 16014 | -4/Extension | Entered Research 16014 | -3/Research | Accompanied by 1 ally (A7) 16014 | -3/Research | Evolved 2 slots: Utility x1, Weapon x1 16035 | -3/Research | Discovered new exit (range 11) 16074 | -3/Research | Build established: Tank 16115 | -3/Research | X0-1V1 mutated your Propulsion slot to Power slot 16264 | -3/Research | First assault squad dispatched 16453 | -3/Research | Identified exit to Research 16653 | -3/Research | Incoming assault squad redirected 16901 | -3/Research | Found Prototype Launcher 16935 | -3/Research | System corruption reached 10% 17383 | -3/Research | X0-1V1 upgraded hostiles (x1) 17445 | -3/Research | Lost 3 parts (2n1u) 17574 | -3/Research | Build established: Gunner 17628 | -3/Research | Repaired Adv. Medium Treads 17686 | -3/Research | X0-1V1 sent you to a vault 17696 | -3/Research | Found Prototype Device 17696 | -3/Research | Identified Exp. Weapon Cycler 17702 | -3/Research | Found Prototype Slashing Weapon 17702 | -3/Research | Identified Hvy. Scimitar of Distortion 17727 | -3/Research | X0-1V1 downgraded hostiles (x1) 17734 | -3/Research | X0-1V1 whisked you away to safety 18222 | -3/Research | X0-1V1 activates XOMVISION 18227 | -3/Research | Identified Adv. Micro-nuke Launcher 18273 | -3/Research | X0-1V1 caused items to flee you 18280 | -3/Research | Destroyed 8 combat bots 18286 | -3/Research | Lost 4 parts (1n1u2w) 18525 | -3/Research | Build established: Tank 18531 | -3/Research | Items stopped fleeing you 18657 | -3/Research | Lost 3 parts (3p) 18698 | -3/Research | Destroyed 8 combat bots 18728 | -3/Research | Incoming assault squad redirected 18766 | -3/Research | Core integrity fell below 50% 18785 | -3/Research | Incoming assault squad redirected 18797 | -3/Research | Lost 6 parts (3n1u2w) 18799 | -3/Research | Destroyed 9 combat bots 18850 | -3/Research | X0-1V1 put everyone to sleep 19027 | -3/Research | X0-1V1 vaporized surrounding terrain (radius 22) 19030 | -3/Research | Incoming assault squad redirected 19278 | -3/Research | Build established: Gladiator 19305 | -3/Research | Lost 8 parts (1p5u2w) 19332 | -3/Research | Core integrity fell below 20% 19348 | -3/Research | Destroyed by L-61 Swordsman with Power Sword Last Messages --------------- 19331_ Hvy. Scimitar of Distortion follow-up attack on Y-72 Warden. 19332_ K-01 Serf collects debris. 19334_ C-45 Heavy ARC bursts open, deploying its payload. 19334_ G-67 Veteran unfolds itself. 19334_ K-01 Serf collects debris. 19334_ Y-72 Warden destroyed. 19335_ K-01 Serf collects debris. 19336_ Lgt. Antimatter Reactor destroyed. 19337_ E-15 Imp destroyed. 19338_ Phase Gun destroyed. 19338_ K-01 Serf collects debris. 19341_ System corrupted: Energy discharge (-47). 19341_ K-01 Serf collects debris. 19342_ Dropped Alien Artifact. 19342_ K-01 Serf collects debris. 19345_ Acquired 42 matter. 19345_ K-01 Serf collects debris. 19347_ X0-1V1 briefly opens a portal to the matter dimension. 19348_ K-01 Serf collects debris. 19348_ X0-1V1 chuckles heartily! Map ----- +----------------------------------------------------+ | ?????# # " " ? | | ?????# """""""" "! ? | | ?????# " # !![ ""?? | | ?????# " # !![ """? | | ?????# " """""""# ![[ """ | | ?????# " " # | | ?????# ##+##"""""""""" # | | ?????#" " # # # "" ""? | | ??? " " """""" # ""S"?? | | ??""""" " !! #""""" # """" ? | | # ! # " # | | " " " # | | " " + ####""###### | | " " " " #????? | | ?"""""+"""""" " "Y" " " " #????? | | ??"" "" " """ " " ] " ##????? | | ???" "" #"#+##"""" " " #?????? | | ???"""" "" " " #?????? | | ???"""" +^ " " ##?????? | | ???"""" "" """""""" #??????? | | ???#""" /"" " ##??????? | | ???#""" """"""""#% #######" ##???????? | | ???#""" " #% #% % #"""""" ##????????? | | ???#""" " ##% #!% % # " #?????????? | | ???# " # % #[!! #"""" " ##?????????? | | ???# " #T *%#@%=%%#""""######????????? | | ???#######"" "# !%l%!==*#" ????????? | | ?????????## # !=#=kk%%#" ?????????? | | ??????????### # |%#gg=k|#" ??????????? | | ????????????#### # %%#g*!!|#? """ ??????????? | | ################# *!###+#### """ ?????????? | | %% =[%%[ / """ =?????????? | | % ^ %%*% # """ ????????? | | % ^[ / """ ????????? | | """ # #??????? | | ######+############### """ # #??????? | | ?????????????????????# %""" #? #??????? | | ??????????????########% ^""" #? ! #??????? | | ??????????????# #% """ #?? #??????? | | ??????????????# # """ # ?] #??????? | | ??? ??????????# " #??? #??????? | | ?????????? ???# # #+??########??????? | | ?#????????????# # # ????????????????? | | ??????????????# ] ### ##### ????????????????? | | ??????????????########?# #???? ????????????????? | | #???#??#???????????????# #???? #?#?????????????? | | ????????#????#?????? ??# #???# #???????????????? | | ?????#????????#???????? ?#?# #??#?? ?????????? | | ??#???#????????????????#### #?## #?????#?????????? | | ??????????????????????#???# #??# #???????????????? | +----------------------------------------------------+ Best States ------------- Heat Dissipation 221 Energy Generation 70 Energy Capacity 2060 Matter Stores 1000 Matter Capacity 1000 Sight Range 20 Terrain Scan Range 20 Terrain Scan Density 10 Cloak Strength 3 Additional Mass Support 12 Corruption Block 20 Armor Coverage 750 Resistance: KI 30 Resistance: TH 10 Resistance: EM 20 Weapon Shielding 66 Phase Shifting 10 Evasion (%) 55 Targeting Accuracy 8 Melee Accuracy 8 Armor Integrity Analysis 50 Recoil Reduction 6 Offensive Hacking 14 Item Schematics ----------------- Hcp. Storage Unit | -10/Materials | Hacked Combat Drone Bay | -7/Data Miner | Free Lgt. Regenerative Plating | -7/Data Miner | Free Cld. Aerolev Unit | -7/Data Miner | Free Exp. Targeting Computer | -7/Data Miner | Free Imp. Heavy Machine Gun | -7/Data Miner | Free Thunder Leg | -7/Data Miner | Free Point Defense System | -7/Data Miner | Free Disruptor Cannon | -7/Data Miner | Free Hvy. Flak Cannon | -6/Zion | Archive Fusion Compressor | -6/Zion | Archive Hyp. Gauss Cannon | -6/Zion | Archive Adv. Signal Interpreter | -6/Zion | Archive Antigrav System | -6/Zion | Archive Arm. Leg | -6/Zion | Archive Imp. Force Field | -6/Zion | Archive Adv. Focal Shield | -6/Zion | Archive Imp. Core Shielding | -6/Zion | Archive Mass Driver | -6/Zion | Archive Imp. Thermal Shield | -6/Zion | Archive Phase Cannon | -6/Zion | Archive Energy Well | -6/Zion | Archive Imp. Coolant Injector | -6/Zion | Archive Assault Drone Bay | -5/Zhirov | Free Exp. Heat Sink | -5/Zhirov | Free Exp. Optical Array | -5/Zhirov | Free Imp. Arc Thrower | -5/Zhirov | Free Robot Schematics ------------------ S-27 Virus | -7/Data Miner | Free H-55 Commando | -7/Data Miner | Free M-22 Extractor | -7/Data Miner | Free G-50 Soldier | -7/Data Miner | Free L-41 Fighter | -6/Zion | Archive H-66 Slayer | -6/Zion | Archive X-82 Rainmaker | -6/Zion | Archive Fabricated ------------ S-27 Virus | x4 | -7/Factory | Preloaded B-48 Gladiator | x3 | -6/Factory | Preloaded Repaired ---------- Magnetic Acceleration Cannon | 99% | -7/Factory | Broken Lyr. Heavy Armor Plating | 32% | -4/Extension Adv. Medium Treads | 7% | -3/Research Studied --------- Arm. Huge Wheel | -6/Factory | Hacked Arm. Wheel | -5/Factory | Hacked Flexi-carbon Leg | -4/Factory | Hacked HERF Cannon | -4/Factory | Hacked Alien Tech Used ----------------- Integrated Dissipator Achievements -------------- About That Survey... Recruitment Drive Challenges ------------ None Game ------ Seed CobblerSuperquantumShooter Manual? 0 Play Time 02:49:02 Cumulative 586.0 hours Start 2026.09.11 @ 23:29:52 End 2026.09.13 @ 05:57:10 Sessions 11 Manual Loads 0 Difficulty Rogue Special Mode None Game No. 392 Rogue 392 Adventurer 0 Explorer 0 Win Type - Total 58 Types 49/0/7/2/0/0/0/0/0/0 Lore% 84 Gallery% 77 Achievement% 60 Wizard Run 0 Options --------- Layout 0 ASCII 0 Keyboard 1 Movement Numpad Keybinds 0 Fullscreen 2 Font 24/Terminus Map View 76x50 Zoom Use 0% Tactical HUD 1 Map Filters NONE Filters NONE Steam 1 RUN: f373a1b5-0dbb-4601-91c5-4082857da276